Cogmind - Beta 9.5 @@@ ROGUE MODE // 2020.04.08 @ 21:30:55 Player: OccultOnion Result: Destroyed by G-47 Trooper with Particle Gun Performance ------------- Evolutions (2) 1000 Regions Visited (4) 800 Robots Destroyed (19) 95 Value Destroyed (600) 600 Prototype IDs (1) 20 Alien Tech Used (0) 0 Bonus (0) 0 TOTAL SCORE: 2515 Bonus ------- None Cogmind --------- Core Integrity 0/550 Matter 278/300 Energy 99/100 System Corruption 0% Temperature Cool (27) Movement Core (100) Ox1 Location -8/Storage Parts ------- > --- POWER (1) -------- (None) > --- PROPULSION (4) --- (None) > --- UTILITY (4) ------ Seismic Analyzer > --- WEAPON (2) ------- Mini Assault Cannon > --- INVENTORY (4) ---- Improved Ion Engine Seismic Analyzer Drone Bay (0/2) Mini Assault Cannon Peak State ------------ > --- POWER ------------ Ion Engine > --- PROPULSION ------- Aluminum Leg Improved Aluminum Leg Titanium Leg Cesium-ion Thruster > --- UTILITY ---------- Structural Scanner Seismic Analyzer Drone Bay Drone Bay > --- WEAPON ----------- Particle Cannon Katana > --- INVENTORY -------- Light Nuclear Core Seismic Analyzer Drone Bay [Rating: 27] Favorites ----------- Power Ion Engine Engine Ion Engine Power Core Light Nuclear Core Propulsion Light Treads Treads Light Treads Leg Aluminum Leg Flight Unit Cesium-ion Thruster Utility Small Storage Unit Device Structural Scanner Storage Small Storage Unit Processor Seismic Analyzer Protection Light Armor Plating Weapon Particle Cannon Energy Gun Small Laser Energy Cannon Particle Cannon Ballistic Gun Heavy Assault Rifle Ballistic Cannon Mini Assault Cannon Slashing Weapon Katana Build | -11 -10 -9 -8 -8 ------- Run | Scr Mat Mat Mat Sto Slots Evolved 4 | . . 2 2 . Power . | . . . . . Propulsion 2 | . . 1 1 . Utility 2 | . . 1 1 . Weapon . | . . . . . Parts Attached 33 | 7 1 8 6 11 Power 3 | 1 . 1 . 1 Engine 2 | 1 . 1 . . Core 1 | . . . . 1 Reactor . | . . . . . Propulsion 9 | 2 . 3 2 2 Treads 3 | . . 3 . . Leg 5 | 2 . . 2 1 Wheel . | . . . . . Hover . | . . . . . Flight 1 | . . . . 1 Utility 10 | 2 . 2 2 4 Device 7 | 1 . 2 1 3 Storage 1 | 1 . . . . Processor 1 | . . . . 1 Hackware . | . . . . . Protection 1 | . . . 1 . Artifact . | . . . . . Weapon 11 | 2 1 2 2 4 Energy Gun 4 | 2 . . 1 1 Energy Cannon 4 | . 1 2 . 1 Ballistic Gun 1 | . . . 1 . Ballistic Cannon 1 | . . . . 1 Launcher . | . . . . . Special Weapon . | . . . . . Impact Weapon . | . . . . . Slashing Weapon 1 | . . . . 1 Piercing Weapon . | . . . . . Special Melee Weapon . | . . . . . Unidentified Prototypes 1 | . . . . 1 Parts Lost 30 | . 6 1 11 12 Power 3 | . 1 . . 2 Propulsion 9 | . 2 . 3 4 Utility 8 | . . 1 4 3 Weapon 10 | . 3 . 4 3 Highest Loss Streak 10 | . 6 1 8 10 Average Slot Usage (%) 86 | . 95 92 86 69 Engine 10 | . 13 11 9 5 Treads 12 | . . 29 18 . Leg 14 | . 26 . 11 22 Device 19 | . 14 21 19 22 Storage 8 | . 14 11 8 . Processor 1 | . . . . 7 Energy Gun 7 | . 25 . . . Energy Cannon 8 | . . 18 9 5 Naked Turns . | . . . . . Heaviest Build 28 | 13 13 19 22 28 Greatest Support 60 | 20 20 60 30 40 Greatest Overweight (x) 2 | . 2 . 1 2 Average Overweight (x) . | . . . . . Largest Inventory Capacity 6 | 6 6 6 6 4 Average Capacity 5 | 5 6 6 5 4 Most Carried 6 | 5 6 6 6 4 Average Carried 4 | 2 5 4 5 3 Final Capacity 6 | 6 6 6 4 4 Final Carried 6 | 4 5 6 4 4 Class Distribution -------------------- 100% | Mutant Dominant Class ---------------- Mutant | -10/Materials Mutant | -9/Materials Mutant | -8/Materials Mutant | -8/Storage Resources | -11 -10 -9 -8 -8 ----------- Run | Scr Mat Mat Mat Sto Matter Collected 510 | 253 17 75 87 78 Remotely 63 | . . . 63 . Salvage Created 789 | 15 186 275 206 107 Parts 46 | 2 12 18 8 6 Haulers Intercepted 2 | . . 1 1 . Recyclers Shooed 1 | 1 . . . . Parts Field Recycled . | . . . . . Retrieved Matter . | . . . . . Parts Self-Destructed . | . . . . . Prevented . | . . . . . Kills | -11 -10 -9 -8 -8 ------- Run | Scr Mat Mat Mat Sto Combat Hostiles Destroyed 14 | . 5 4 3 2 Melee 2 | . . . . 2 Guns 5 | . 5 . . . Cannons 7 | . . 4 3 . Classes Destroyed 5 | 1 1 3 . . Tunneler 1 | 1 . . . . Hauler 2 | . . 1 1 . Watcher 2 | . . 2 . . Grunt 9 | . 5 2 2 . Sentry 5 | . . 2 1 2 Best Kill Streak 5 | 1 5 3 2 1 Combat Bots Only 5 | . 5 1 1 1 Max Kills in Single Turn 1 | 1 1 1 1 1 Gunslinging . | . . . . . Exploded . | . . . . . Melee 1 | . . . . 1 Uniques/NPCs Destroyed . | . . . . . Combat | -11 -10 -9 -8 -8 -------- Run | Scr Mat Mat Mat Sto Damage Taken 3203 | . 699 381 949 1174 Core 827 | . 218 47 112 450 Absorbed by Shields . | . . . . . Core Remaining (%) 66 | 100 12 88 . . Volleys Fired 65 | 2 22 17 22 2 Largest 2 | 2 2 2 2 2 Hottest 136 | 90 90 136 91 111 Shots Fired 110 | 4 37 30 36 3 Gun 55 | 4 32 . 18 1 Cannon 55 | . 5 30 18 2 Launcher . | . . . . . Special . | . . . . . Kinetic 17 | . . . 15 2 Thermal 93 | 4 37 30 21 1 Explosive . | . . . . . Electromagnetic . | . . . . . Robot Hit Streak 11 | 1 11 7 5 6 Robot Miss Streak 4 | 2 3 4 3 . Penetration Max . | . . . . . Secondary Targets . | . . . . . Shots Hit Robots 72 | 1 25 19 18 9 Core Hits 30 | 1 10 8 8 3 Critical Hits 1 | . . . . 1 Critical Kills . | . . . . . Critical Parts Destroyed 1 | . . . . 1 Melee Attacks 7 | . . . . 7 Impact . | . . . . . Slashing 7 | . . . . 7 Piercing . | . . . . . Sneak Attacks . | . . . . . Combat Hostiles . | . . . . . Follow-up Attacks . | . . . . . Damage Inflicted 1315 | 12 297 369 363 274 Guns 447 | 12 262 . 155 18 Cannons 664 | . 35 369 203 57 Explosions . | . . . . . Melee 186 | . . . . 186 Ramming 18 | . . . 5 13 Kinetic 163 | . . . 106 57 Thermal 948 | 12 297 369 252 18 Explosive . | . . . . . Electromagnetic . | . . . . . Impact . | . . . . . Slashing 186 | . . . . 186 Piercing . | . . . . . Highest Corruption 1 | . 1 . . . Average Corruption 1 | . 1 . . . Corruption Purged . | . . . . . Overload Shots . | . . . . . Overflow Damage . | . . . . . Projectiles . | . . . . . Explosions . | . . . . . Melee . | . . . . . Knockbacks . | . . . . . Impact . | . . . . . Kinetic . | . . . . . Secondary . | . . . . . Self-Inflicted Damage 2 | . . . 2 . Shots . | . . . . . Rammed 2 | . . . 2 . Targets Rammed 4 | . . . 3 1 Kicked 2 | . . . 1 1 Crushed . | . . . . . Highest Temperature 528 | 60 528 330 313 38 Average Temperature 169 | 31 298 128 105 25 Received Heat Transfer 1473 | . 375 90 531 477 Effects 12 | . 8 2 2 . Shutdowns 2 | . 2 . . . Energy Bleed 2 | . 1 . 1 . Interference 3 | . . 2 1 . Matter Decay 1 | . 1 . . . Damage (major) 3 | . 3 . . . Damage (core) 1 | . 1 . . . Siege Activations . | . . . . . Robots Corrupted . | . . . . . Combat Hostiles . | . . . . . Parts Fried . | . . . . . Impact Corruptions . | . . . . . Robots Melted . | . . . . . Combat Hostiles . | . . . . . Parts Melted 3 | . 1 . 2 . Heat Transferred 1989 | 37 768 666 481 37 Parts Sabotaged . | . . . . . Parts Stolen . | . . . . . Parts Stripped . | . . . . . Power Chain Reactions . | . . . . . Missiles Intercepted . | . . . . . Alert | -11 -10 -9 -8 -8 ------- Run | Scr Mat Mat Mat Sto Peak Influence 133 | 5 133 111 87 40 Average Influence 29 | 2 29 45 32 11 Maximum Alert Level . | . . . . . Low Security (%) 100 | 100 100 100 100 100 Level 1 . | . . . . . Level 2 . | . . . . . Level 3 . | . . . . . Level 4 . | . . . . . Level 5 . | . . . . . High Security . | . . . . . Max Security . | . . . . . Squads Dispatched 5 | . 3 . 2 . Investigation 1 | . 1 . . . Extermination . | . . . . . Reinforcement 4 | . 2 . 2 . Assault . | . . . . . Garrison . | . . . . . Intercept . | . . . . . Construction Impeded . | . . . . . Haulers Reinforced . | . . . . . Stealth | -11 -10 -9 -8 -8 --------- Run | Scr Mat Mat Mat Sto Distress Signals 3 | . 1 . . 2 Communications Jammed . | . . . . . Distress Signals . | . . . . . Times Spotted 42 | . 13 5 10 14 Peak Tracking Total 7 | . 6 2 5 7 Tactical Retreats 5 | . 1 . . 4 Traps | -11 -10 -9 -8 -8 ------- Run | Scr Mat Mat Mat Sto Traps Triggered 2 | . 1 . . 1 Indirectly . | . . . . . Trap Hack Attempts . | . . . . . Triggered . | . . . . . Disarmed . | . . . . . Reprogrammed . | . . . . . Reused . | . . . . . Traps Extracted . | . . . . . Installed . | . . . . . Triggered . | . . . . . Machines | -11 -10 -9 -8 -8 ---------- Run | Scr Mat Mat Mat Sto Machines Disabled . | . . . . . Max in Single Turn . | . . . . . Garrison Access 1 | . . . 1 . Machines Sabotaged . | . . . . . Garrisons Compromised . | . . . . . Overloaded Fab Kills . | . . . . . Fab Network Shutdowns . | . . . . . Hacking | -11 -10 -9 -8 -8 --------- Run | Scr Mat Mat Mat Sto Machines Accessed 7 | . 3 1 1 2 Terminals 4 | . 1 1 . 2 Fabricators . | . . . . . Repair Stations 1 | . 1 . . . Recycling Units 1 | . 1 . . . Scanalyzers . | . . . . . Garrison Access 1 | . . . 1 . Total Hacks 17 | . 7 4 1 5 Successful 9 | . 3 3 1 2 Failed 8 | . 4 1 . 3 Catastrophic . | . . . . . Database Lockouts . | . . . . . Manual . | . . . . . Terminals 11 | . 2 4 . 5 Fabricators . | . . . . . Repair Stations 1 | . 1 . . . Recycling Units 4 | . 4 . . . Scanalyzers . | . . . . . Garrison Access 1 | . . . 1 . Terminal Hacks 5 | . . 3 . 2 Open Door 2 | . . . . 2 Alert Level 1 | . . 1 . . Locate Traps 1 | . . 1 . . Zone Layout 1 | . . 1 . . Fabricator Hacks . | . . . . . Repair Station Hacks 1 | . 1 . . . Scan Component 1 | . 1 . . . Recycling Unit Hacks 2 | . 2 . . . Process 1 | . 1 . . . Retrieve Components 1 | . 1 . . . Scanalyzer . | . . . . . Garrison Access Hacks 1 | . . . 1 . Seal Access 1 | . . . 1 . Unauthorized Hacks . | . . . . . Terminals . | . . . . . Fabricators . | . . . . . Repair Stations . | . . . . . Recycling Units . | . . . . . Scanalyzers . | . . . . . Garrison Access . | . . . . . Data Cores Recovered . | . . . . . Used . | . . . . . Hacking Detections 3 | . 2 1 . . Full Trace Events 1 | . 1 . . . Feedback Events . | . . . . . Feedback Blocked . | . . . . . Robot Schematics Acquired . | . . . . . Robots Built . | . . . . . Matter . | . . . . . Time . | . . . . . Total Robot Build Rating . | . . . . . Part Schematics Acquired . | . . . . . Parts Built . | . . . . . Matter . | . . . . . Time . | . . . . . Total Part Build Rating . | . . . . . Parts Repaired . | . . . . . Time . | . . . . . Parts Recycled . | . . . . . Recycled Matter 6 | . 6 . . . Retrieved Matter . | . . . . . Retrieved Components . | . . . . . Parts Scanalyzed . | . . . . . Part Schematics Acquired . | . . . . . Parts Damaged . | . . . . . Bothacking | -11 -10 -9 -8 -8 ------------ Run | Scr Mat Mat Mat Sto Used RIF Installer . | . . . . . Robots Hacked . | . . . . . Non-combat . | . . . . . Combat . | . . . . . Robot Hacks Applied . | . . . . . Relay Couplers Released . | . . . . . Robots Rewired . | . . . . . Allies Hacked . | . . . . . Hacks Repelled . | . . . . . Allies | -11 -10 -9 -8 -8 -------- Run | Scr Mat Mat Mat Sto Total Allies . | . . . . . Largest Group . | . . . . . Highest-Rated Group . | . . . . . Highest-Rated Ally . | . . . . . Total Orders . | . . . . . Ally Attacks . | . . . . . Total Damage . | . . . . . Kills . | . . . . . Allies Corrupted . | . . . . . Allies Melted . | . . . . . Intel | -11 -10 -9 -8 -8 ------- Run | Scr Mat Mat Mat Sto Robot Analysis Total . | . . . . . Derelict Logs Recovered . | . . . . . Drone Launches 6 | . . . . 6 Drone Recoveries . | . . . . . Exploration | -11 -10 -9 -8 -8 ------------- Run | Scr Mat Mat Mat Sto Turns Passed 1462 | 95 404 431 218 314 Spaces Moved 896 | 64 271 226 99 236 Core 63 | 7 10 . . 46 Treads 226 | . . 226 . . Legs 607 | 57 261 . 99 190 Wheels . | . . . . . Hover . | . . . . . Flight . | . . . . . Fastest Speed 50 | 50 100 160 125 50 Average Speed 130 | 112 120 160 145 111 Slowest Speed 160 | 120 150 160 150 150 Overloaded Moves . | . . . . . Propulsion Burnouts . | . . . . . Robots Hopped . | . . . . . Cave-ins Triggered . | . . . . . Exploration Rate (%) 27 | 4 41 27 8 59 Regions Visited 4 Branch Regions 1 Pre-discovered Areas . | . . . . . Known Exits Taken . | . . . . . Unknown Exits Taken 4 | 1 1 1 1 . Scrap Searched . | . . . . . Spaces Dug . | . . . . . Terrain Destroyed . | . . . . . Melee . | . . . . . Projectile . | . . . . . AOE . | . . . . . Actions | -11 -10 -9 -8 -8 --------- Run | Scr Mat Mat Mat Sto Total 1070 | 83 311 268 136 272 Wait 22 | . 14 3 . 5 Move 892 | 63 270 225 98 236 Hop . | . . . . . Pick Up 42 | 11 3 12 6 10 Fast Attach . | . . . . . Attach 32 | 7 1 8 6 10 Detach . | . . . . . Swap 1 | . . . . 1 Drop 5 | . 1 3 1 . Fire 65 | 2 22 17 22 2 Melee 7 | . . . . 7 Ram . | . . . . . Kick 4 | . . . 3 1 Crush . | . . . . . Escape Stasis . | . . . . . Rewire . | . . . . . Trap . | . . . . . Miscellaneous . | . . . . . Route ------- -11/Scrapyard -10/Materials (discovered 2 exits: *Mat / [*Min]) -9/Materials -8/Materials -8/Storage History --------- Turn | Location | Event 6 | -11/Scrapyard | Discovered new exit (range 15) 96 | -11/Scrapyard | Entered Materials 104 | -10/Materials | Discovered new exit (range 15) 306 | -10/Materials | Build established: Mutant 405 | -10/Materials | Discovered new exit (range 16) 486 | -10/Materials | Core integrity fell below 50% 498 | -10/Materials | Core integrity fell below 20% 500 | -10/Materials | Entered another Materials area 500 | -9/Materials | Evolved 2 slots: Propulsion x1, Utility x1 525 | -9/Materials | Lost 6 parts (1p2n3w) 905 | -9/Materials | Discovered new exit (range 16) 931 | -9/Materials | Entered another Materials area 931 | -8/Materials | Evolved 2 slots: Propulsion x1, Utility x1 984 | -8/Materials | Discovered new exit (range 5) 1030 | -8/Materials | Lost 3 parts (1n1u1w) 1149 | -8/Materials | Entered Storage 1166 | -8/Storage | Lost 8 parts (2n3u3w) 1423 | -8/Storage | Core integrity fell below 50% 1455 | -8/Storage | Core integrity fell below 20% 1463 | -8/Storage | Destroyed by G-47 Trooper with Particle Gun Last Messages --------------- 01408_ Titanium Leg destroyed. 01410_ Cesium-ion Thruster destroyed. 01410_ Drone Bay destroyed. 01411_ Y-45 Defender destroyed. 01412_ Imp. Aluminum Leg destroyed. 01414_ Drone Bay destroyed. 01418_ K-01 Serf collects debris. 01418_ Aluminum Leg destroyed. 01419_ R-06 Scavenger collects Lgt. Treads. 01421_ Imp. Ion Engine severed. 01423_ R-06 Scavenger collects Imp. Ion Engine. 01436_ Acquired Electrolaser. 01441_ Triggered Heavy Explosive Trap. 01441_ An explosion rips through the floor. 01441_ Katana destroyed. 01443_ Acquired Prototype Ballistic Cannon. 01444_ Identified Mni. Assault Cannon. 01447_ Acquired Mni. Assault Cannon. 01457_ Electrolaser destroyed. 01459_ Structural Scanner destroyed. Map ----- +----------------------------------------------------+ | | | | | | | | | | | | | | | | | | | | | | | | | | | | | | | ?????????????????????????????????????????????????? | | ????????????????###??????????????????????????????? | | ?????????????#### ###????????????????????????????? | | ?????????????# #????????????????????????????? | | ?????????????# ]]] #????????????????????????????? | | ????????????## ] #????????????????????????????? | | ????????????# ##????????????????????????????? | | ????????????## #??######????????????????????? | | ???????????"## #### #????????????????????? | | ???????????" #????????????????????? | | ???????????" g Y g @ #????????????????????? | | ???????????"#T##+#######Y #????????????????????? | | ????????????### ### ##????????????????????? | | ??????????????# #?# #?????????????????????? | | ??????????????# #?# Y?????????????????????? | | ??????????????# #?# # ???????????????????## | | ??????????????# #?# # ?????????????######T | | ??????????????# #?# #? ????????????#!!!!# | | ??????????????# #?# #?###+#?????##??# | | ??????????????# #?# #???# ###### ##?# !# | | ??????????????# #?# #???# # ?####### | | ??????????????+ ### ##??# # ??????? | | ??????????????#=] ## #### # """ """ ""????? | | ??????????????##+####+## # """ """ T"#???? | | ???????????????# % / """ """ ""#???? | | ???????? #### ## ### # #?????? | | ????????????????????# #######?# # #?????? | | ????????????????????#+######### # #?????? | | ??????????????????????? + ##/##+#####?????? | | ???????????????????????????#### % * #?????????? | | ??????????????????????????????## #?????????? | | ???????????????????????????????# ########### | | ???????????????????????????????# % | | ???????????????????????????????##### #### | | ???????????????????????????????????# #??? | +----------------------------------------------------+ Best States ------------- Heat Dissipation 31 Energy Generation 14 Energy Capacity 250 Matter Stores 300 Matter Capacity 300 Sight Range 16 Robot Scan Range 10 Terrain Scan Range 16 Terrain Scan Density 60 Armor Coverage 150 Evasion (%) 50 Recoil Reduction 3 Item Schematics ----------------- None Robot Schematics ------------------ None Fabricated ------------ Nothing Alien Tech Used ----------------- None Achievements -------------- Release The Drones! Challenges ------------ None Game ------ Seed GravitonReactiveAmplifier Manual? 0 Play Time 00:13:08 Cumulative 40.7 hours Start 2020.04.08 @ 21:17:47 End 2020.04.08 @ 21:30:55 Sessions 1 Manual Loads 0 Difficulty Rogue Special Mode None Game No. 104 Rogue 104 Adventurer 0 Explorer 0 Win Type - Total 0 Types 0/0/0/0/0/0/0 Lore% 23 Gallery% 42 Achievement% 27 Wizard Run 0 Options --------- ASCII 0 Keyboard 0 Movement Numpad Keybinds 0 Fullscreen 1 Font 18/SmallcapsGlow Map View 76x50 Tactical HUD 1 Map Filters NONE Filters NONE Steam 1 RUN: 1ff5734e-bb2a-4214-8c20-53c5918b58f6